bitfinex/quotes_ETHUSD_20241122
["timestamp","ask_amount","ask_price","bid_price","bid_amount"]
[1732287046955,3.04062,3288.9,3287.2,0.7598]
[1732287047152,0.304062,3288.9,3287.2,0.79021279]
[1732287047374,0.7598,3288.8,3287.4,0.8005]
[1732287047648,3.03984,3289.7,3287.6,0.8005]
[1732287047850,3.03938,3290.2,3288.1,0.7574]
[1732287048204,0.8136,3290.3,3288.0,0.55]
[1732287048205,3.03923,3290.3,3288.4,0.55]
[1732287048345,1.214086,3290.1,3288.6,0.7574]
[1732287048546,3.03896,3290.6,3288.8,0.7574]
[1732287048753,0.385256,3290.6,3289.0,0.7533]
[1732287049001,4.73880224,3291.2,3289.0,0.7533]
[1732287049002,3.03912,3290.5,3289.0,0.7533]
[1732287049457,3.03849,3291.1,3289.1,0.03039795]
[1732287049670,0.7574,3290.6,3288.9,0.7638]
[1732287049847,0.77773422,3291.0,3288.6,0.01]
[1732287049848,0.77773422,3291.0,3289.1,0.7638]
[1732287050047,0.77773422,3291.0,3289.3,0.7893]
[1732287050288,6.96982224,3291.7,3289.5,0.7893]
[1732287050496,3.93180224,3291.2,3289.5,0.7893]
[1732287050649,3.03942,3290.1,3289.5,0.7893]
[1732287050855,3.93180224,3290.7,3289.5,0.7893]
[1732287051053,3.03963,3289.9,3289.5,0.7893]
[1732287051274,3.343663,3289.8,3289.5,0.7893]
[1732287051583,3.03979,3289.7,3287.9,0.8171]
[1732287051785,3.03962,3289.9,3288.1,0.8171]
[1732287051988,3.55,3290.4,3288.1,0.8171]
[1732287052200,3.0,3290.4,3288.3,0.8171]
[1732287052407,3.03968,3289.9,3288.5,0.7531]
[1732287052722,0.55,3290.2,3288.5,0.7531]
[1732287052873,3.55,3290.3,3288.5,0.7531]
[1732287053072,3.55,3290.3,3287.5,0.01]
[1732287053073,3.03943,3290.1,3288.6,0.03040453]
[1732287053316,3.03943,3290.1,3288.0,0.01]
[1732287053317,6.03923,3290.3,3288.7,0.8092]
[1732287053517,3.58877,3290.8,3288.9,0.8092]
[1732287053722,3.55,3290.6,3288.9,0.8092]
[1732287054018,3.0,3290.6,3288.9,0.8092]
[1732287054220,3.03919,3290.4,3288.9,0.8092]
[1732287054536,0.55,3290.8,3288.9,0.8092]
[1732287054685,3.03927,3290.3,3288.9,0.8092]
[1732287055018,3.03905,3290.6,3288.9,0.8092]
[1732287055220,3.03932,3290.3,3288.9,0.8092]
[1732287055583,0.55,3290.8,3288.9,0.8092]
[1732287055779,0.804,3290.9,3288.9,0.8092]
[1732287055780,3.03971,3289.8,3288.9,0.8092]
[1732287055983,3.04015,3289.4,3288.9,0.8092]
[1732287056207,3.04016,3289.3,3288.9,0.8092]
[1732287056519,3.04032,3289.2,3288.9,0.8092]
[1732287056720,3.0,3289.7,3288.9,0.8092]
[1732287056930,3.04034,3289.1,3288.9,0.8092]
[1732287057130,3.04004,3289.5,3288.9,0.8092]
[1732287057433,3.0404,3289.1,3287.5,0.7566]
[1732287057579,3.344154,3289.4,3287.6,0.78701026]
[1732287057785,3.04026,3289.2,3287.6,0.78701026]
[1732287057980,3.6787234,3289.2,3287.6,0.7566]
[1732287058534,3.04014,3289.4,3288.0,0.7566]
[1732287058682,3.04074,3288.7,3288.0,0.7566]
[1732287059024,0.55,3289.2,3288.0,0.7566]
[1732287059184,3.5903,3289.2,3288.0,0.7566]
[1732287059384,3.04084,3288.6,3288.0,0.7566]
[1732287059722,3.04046,3289.0,3288.0,0.7566]
[1732287059908,0.304046,3288.9,3288.0,0.7566]
[1732287060094,3.58988,3289.6,3288.0,0.7566]
[1732287060282,3.93180224,3289.9,3286.7,0.0096]
[1732287060283,3.0396,3289.9,3288.2,0.7625]
[1732287060478,3.03991,3289.6,3288.4,0.7625]
[1732287060705,3.04038,3289.1,3288.4,0.7625]
[1732287060919,3.03994,3289.6,3288.4,0.7625]
[1732287061134,3.03979,3289.7,3288.4,0.7625]
[1732287061331,3.03979,3289.7,3287.1,0.0096]
[1732287061332,3.0393,3290.3,3288.6,0.7822]
[1732287061625,0.7676,3290.6,3288.7,0.7822]
[1732287061830,3.93180224,3290.3,3288.7,0.7822]
[1732287062012,3.03996,3289.6,3288.7,0.7822]
[1732287062185,3.03973,3289.8,3288.7,0.7822]
[1732287062405,0.39318022,3290.2,3288.7,0.7822]
[1732287062606,3.03982,3289.7,3288.7,0.7822]
[1732287062904,0.7676,3290.6,3288.9,0.8265]
[1732287063101,3.03946,3290.1,3288.9,0.8265]
[1732287063352,0.7676,3290.6,3288.4,0.8005]
[1732287063353,3.03902,3290.6,3288.4,0.8005]
[1732287063535,3.03878,3290.8,3288.7,0.8005]
[1732287063866,0.8258,3291.5,3289.2,0.8005]
[1732287064000,3.03925,3290.3,3289.2,0.8005]
[1732287064203,3.93180224,3290.8,3289.2,0.8005]
[1732287064402,3.03867,3291.0,3289.3,0.03039871]
[1732287064637,0.30384,3291.1,3289.3,0.82049871]
[1732287064852,3.03877,3290.8,3289.3,0.82049871]
[1732287065035,0.303877,3290.8,3289.3,0.82049871]
[1732287065242,0.303877,3290.8,3289.3,0.7901]
[1732287065418,0.30384,3291.1,3289.3,0.7901]
[1732287065419,3.0392,3290.4,3289.3,0.7901]
[1732287065753,0.7633,3290.2,3288.2,0.8244]
[1732287065920,3.04028,3289.2,3288.2,0.8244]
[1732287066119,3.0,3290.0,3288.2,0.8244]
[1732287066330,0.680272,3290.0,3288.4,0.7529]
[1732287066541,0.55,3290.5,3288.4,0.7529]
[1732287066705,3.93180224,3290.2,3288.6,0.7529]
[1732287066906,3.0407,3288.8,3288.6,0.7529]
[1732287067105,3.04071,3288.7,3288.6,0.7529]
[1732287067335,3.04071,3288.7,3287.2,0.7529]
[1732287067336,3.04144,3288.0,3287.2,0.7529]
[1732287067561,3.04095,3288.5,3287.2,0.7529]
[1732287067767,3.93180224,3288.2,3287.2,0.7529]
[1732287067912,3.04201,3287.3,3287.2,0.7529]
[1732287068263,3.04211,3287.2,3286.0,0.8017]
[1732287068546,0.8045,3288.0,3285.9,0.17795997]
[1732287068547,3.04175,3287.6,3286.2,0.7859]
[1732287068758,3.04179,3287.6,3286.2,0.7859]
[1732287068907,3.04191,3287.4,3286.2,0.7859]
[1732287069107,3.345969,3287.6,3286.2,0.7859]
[1732287069303,0.304179,3287.6,3286.2,0.7859]
[1732287069507,3.59151,3287.9,3286.2,0.7859]
[1732287069508,3.59151,3287.9,3286.2,0.81632494]
[1732287069808,3.04173,3287.7,3286.2,0.7859]
[1732287070003,3.55,3288.2,3286.4,0.8265]
[1732287070207,3.04151,3287.9,3286.4,0.8265]
[1732287070422,0.55,3288.1,3286.4,0.8265]
[1732287070807,0.81270113,3288.5,3286.3,0.37859]
[1732287070808,3.04158,3287.8,3286.6,0.7808]
[1732287071184,3.04155,3287.8,3286.6,0.7808]
[1732287071452,3.04108,3288.3,3286.7,0.7965]
[1732287071655,0.45648011,3288.4,3286.7,0.82692191]
[1732287071837,3.04081,3288.6,3286.7,0.82692191]
[1732287072146,3.04057,3288.9,3286.7,0.82692191]
[1732287072307,3.03988,3289.6,3287.5,3.93180224]
[1732287072508,3.03963,3289.9,3287.7,0.7763]
[1732287072869,0.02,3291.2,3288.3,0.55]
[1732287072870,3.03907,3290.5,3288.3,0.55]
[1732287073161,3.03974,3289.8,3288.7,0.8265]
[1732287073308,0.607927,3289.8,3288.7,0.8265]
[1732287073508,3.03998,3289.5,3288.7,0.8265]
[1732287073743,3.03993,3289.6,3288.7,0.8265]
[1732287073942,3.03976,3289.8,3288.7,0.8265]
[1732287074158,0.7557,3290.1,3288.7,0.8265]
[1732287074159,3.03948,3290.1,3288.7,0.8265]
[1732287074361,3.03954,3290.0,3288.7,0.8265]
[1732287074556,0.607902,3290.0,3288.7,0.8265]
[1732287074785,0.7557,3290.5,3288.7,0.8265]
[1732287075094,3.03831,3291.3,3289.2,0.7764]
[1732287075264,3.03849,3291.2,3289.4,0.7764]
[1732287075445,0.7657,3291.4,3289.4,0.7764]
[1732287075651,3.03865,3291.0,3289.4,0.7764]
[1732287075958,0.303865,3290.9,3289.4,0.7764]
[1732287076160,3.342545,3290.9,3289.4,0.7764]
[1732287076340,3.0389,3290.7,3289.4,0.7764]
[1732287076542,3.03896,3290.6,3289.4,0.7764]
[1732287076747,3.03967,3289.9,3289.4,0.7764]
[1732287076943,3.55,3290.4,3289.4,0.7764]
[1732287077184,3.03955,3290.0,3289.4,0.7764]
[1732287077350,3.03935,3290.2,3289.4,0.7764]
[1732287077551,0.55,3290.8,3289.4,0.7764]
[1732287077747,3.03874,3290.9,3288.6,0.03039711]
[1732287077975,3.03892,3290.7,3288.7,0.7676]
[1732287078182,3.03892,3290.7,3288.9,0.7676]
[1732287078345,3.03892,3290.7,3288.8,0.41019262]
[1732287078346,3.342644,3290.8,3289.0,0.84719696]
[1732287078696,3.03825,3291.4,3289.2,0.8168]
[1732287078845,0.7681,3291.8,3289.7,0.8168]
[1732287078846,3.03831,3291.3,3289.7,0.8168]
[1732287079051,3.03843,3291.2,3289.9,0.8168]
[1732287079246,0.607674,3291.2,3289.9,0.8168]
[1732287079476,3.03856,3291.1,3289.9,0.8168]
[1732287079756,3.03832,3291.3,3289.9,0.8168]
[1732287080072,6.07736,3290.9,3289.9,0.8168]
[1732287080284,3.03868,3290.9,3289.9,0.8168]
[1732287080486,3.03842,3291.2,3289.9,0.8168]
[1732287080649,3.03822,3291.4,3289.9,0.8168]
[1732287080853,3.0381,3291.6,3290.0,0.84829244]
[1732287081076,3.03786,3291.8,3290.0,0.84829244]
[1732287081301,0.303786,3291.8,3290.1,3.0]
[1732287081501,3.03729,3292.4,3292.3,0.0997]
[1732287083419,3.03729,3292.4,3290.2,0.03038445]
[1732287083420,3.03786,3291.8,3290.2,0.03038681]
[1732287083717,3.03804,3291.6,3289.8,0.03038722]
[1732287083918,0.303786,3291.7,3289.8,0.03038722]
[1732287084080,7.51928224,3292.2,3289.8,0.03038722]
[1732287084417,3.03786,3291.8,3289.7,0.58038723]
[1732287084591,0.55,3292.0,3289.7,1.27356745]
[1732287084996,3.03775,3291.9,3289.7,0.72356745]
[1732287085319,3.03814,3291.5,3289.7,0.72356745]
[1732287085517,6.03763,3292.1,3289.8,0.55]
[1732287085682,3.03774,3292.0,3289.9,0.58038447]
[1732287085878,0.907518,3292.0,3290.6,3.0]
[1732287086086,2.816,3293.4,3290.6,3.0]
[1732287086087,3.03638,3293.4,3291.0,3.93180224]
[1732287086322,0.8178,3293.9,3291.0,3.93180224]
[1732287086323,0.2816,3293.3,3291.7,0.0283]
[1732287086530,3.93180224,3294.2,3291.8,0.05866919]
[1732287086531,3.03611,3293.7,3291.8,0.05866919]
[1732287086695,3.03636,3293.5,3291.8,0.03036919]
[1732287086894,3.03642,3293.4,3291.9,0.0283]
[1732287087204,3.03623,3293.6,3292.1,0.0283]
[1732287087531,0.76799623,3294.0,3292.0,0.03036919]
[1732287087532,0.76799623,3294.0,3292.3,0.0283]
[1732287087696,3.03579,3294.1,3292.5,0.0283]
[1732287087697,3.03573,3294.1,3292.5,0.0283]
[1732287088021,0.7599,3294.9,3292.7,0.0283]
[1732287088022,0.303573,3294.0,3292.7,0.0283]
[1732287088321,0.7599,3294.9,3292.9,0.0283]
[1732287088482,3.0361,3293.7,3292.9,0.0283]
[1732287088686,0.30361,3293.6,3292.9,0.0283]
[1732287089015,3.0363,3293.5,3292.9,0.0283]
[1732287089227,3.33986,3293.6,3292.9,0.0283]
[1732287089438,3.03609,3293.8,3292.9,0.0283]
[1732287089718,0.55,3294.1,3292.9,0.0283]
[1732287089924,3.03517,3294.7,3292.9,0.0283]
[1732287090109,3.7599,3294.9,3292.9,0.0283]
[1732287090110,3.03591,3293.9,3292.9,0.0283]
[1732287090310,3.03564,3294.2,3292.9,0.0283]
[1732287090517,3.03546,3294.4,3292.9,0.0283]
[1732287090684,0.303546,3294.3,3292.9,0.0283]
[1732287090891,3.339086,3294.3,3292.9,0.0283]
[1732287091236,3.03522,3294.7,3292.9,0.0283]
[1732287091428,0.7599,3294.9,3292.9,0.0283]
[1732287091642,3.03627,3293.6,3292.9,0.0283]
[1732287091922,0.303627,3293.5,3292.9,0.0283]
[1732287092122,3.03637,3293.5,3292.9,0.0283]
[1732287092326,3.03674,3293.0,3292.9,0.0283]
[1732287092488,3.03727,3292.5,3291.8,0.0283]
[1732287092696,0.303727,3292.4,3291.8,0.0283]
[1732287092890,3.03712,3292.6,3291.8,0.0283]
[1732287093093,3.0,3293.2,3291.8,0.0283]
[1732287093292,3.03674,3293.0,3291.8,0.0283]
[1732287093508,0.55,3293.0,3291.8,0.0283]
[1732287093843,3.03694,3292.8,3291.8,0.0283]
[1732287093996,3.03702,3292.7,3291.8,0.0283]
[1732287094395,3.03697,3292.8,3291.8,0.0283]
[1732287094727,3.03677,3293.0,3291.8,0.0283]
[1732287094935,0.303677,3292.9,3291.8,0.0283]
[1732287095093,3.340517,3292.9,3291.8,0.0283]
[1732287095299,3.03699,3292.8,3291.8,0.0283]
[1732287095530,3.03683,3293.0,3291.8,0.0283]
[1732287095693,3.340543,3292.9,3291.8,0.0283]
[1732287095893,0.303683,3292.9,3291.8,0.0283]
[1732287096101,3.03636,3293.5,3291.8,0.0283]
[1732287096337,3.03593,3293.9,3292.1,3.0]
[1732287096543,3.03593,3293.9,3292.2,0.0586659]
[1732287096860,3.03656,3293.2,3292.3,0.0283]
[1732287097083,3.03563,3294.2,3292.3,0.0283]
[1732287097084,3.03636,3293.5,3292.3,0.0283]
[1732287097362,3.03612,3293.7,3292.3,0.0283]
[1732287097563,3.03612,3293.7,3292.4,0.0283]
[1732287097766,0.39318022,3294.3,3292.6,0.0283]
[1732287097767,3.03576,3294.1,3292.6,0.0283]
[1732287098061,3.03577,3294.1,3292.6,0.0283]
[1732287098220,3.03571,3294.2,3292.6,0.0283]
[1732287098558,3.03574,3294.1,3292.7,0.0283]
[1732287098713,3.03574,3294.1,3292.8,0.03036226]
[1732287098920,3.03608,3293.8,3292.9,0.0283]
[1732287099219,0.8035,3294.9,3293.0,0.0283]
[1732287099446,0.8035,3294.9,3293.2,0.0283]
[1732287099649,3.03508,3294.8,3292.8,0.0283]
[1732287099850,3.03508,3294.8,3293.0,0.0283]
[1732287100169,3.03492,3295.0,3293.2,0.0283]
[1732287100329,3.03481,3295.1,3293.4,0.0283]
[1732287100666,3.03515,3294.8,3293.6,0.0283]
[1732287100872,3.03496,3295.0,3293.6,0.0283]
[1732287101076,0.303496,3294.9,3293.6,0.0283]
[1732287101378,0.7923,3296.0,3293.8,0.0283]
[1732287101576,3.03459,3295.4,3294.0,0.0283]
[1732287101779,0.382623,3295.9,3294.1,0.03035053]
[1732287101952,3.03443,3295.6,3294.2,0.0283]
[1732287102268,0.303443,3295.5,3294.4,0.0283]
[1732287102476,4.73140224,3296.4,3294.6,0.0283]
[1732287102984,6.06758,3296.2,3294.6,0.0283]
[1732287103140,4.73140224,3296.4,3294.6,0.0283]
[1732287103141,3.03453,3295.5,3294.6,0.0283]
[1732287103343,0.47414022,3296.3,3294.6,0.0283]
[1732287103542,3.03423,3295.8,3294.6,0.0283]
[1732287103769,3.03404,3296.0,3294.6,0.0283]
[1732287104045,0.8045,3296.8,3294.6,0.0283]
[1732287104357,3.03398,3296.0,3294.6,0.0283]
[1732287104662,0.8045,3296.8,3294.6,0.0283]
[1732287104663,3.93180224,3296.4,3294.6,0.0283]
[1732287104873,3.03398,3296.0,3294.6,0.0283]
[1732287105052,3.0337,3296.3,3294.6,0.0283]
[1732287105257,3.03464,3295.3,3294.6,0.0283]
[1732287105744,3.03489,3295.1,3294.6,0.0283]
[1732287106171,3.03473,3295.2,3294.6,0.0283]
[1732287106390,3.641797,3295.1,3294.6,0.0283]
[1732287106563,3.03494,3295.0,3294.6,0.0283]
[1732287106774,3.03473,3295.2,3294.6,0.0283]
[1732287106953,0.303473,3295.1,3294.6,0.0283]
[1732287107158,3.03436,3295.6,3294.6,0.0283]
[1732287107344,0.303436,3295.6,3294.6,0.0283]
[1732287107998,3.03415,3295.9,3294.6,0.0283]
[1732287108200,3.03395,3296.1,3294.6,0.0283]
[1732287108496,0.7637,3296.6,3294.6,0.0283]
[1732287108497,3.0337,3296.3,3294.6,0.0283]
[1732287108704,3.03468,3295.3,3294.6,0.0283]
[1732287108869,3.03388,3296.1,3294.6,0.0283]
[1732287109058,3.03453,3295.5,3294.6,0.0283]
[1732287109261,3.03462,3295.3,3294.6,0.0283]
[1732287109501,3.03489,3295.1,3294.6,0.0283]
[1732287109682,3.0,3296.0,3294.6,0.0283]
[1732287110004,3.0,3296.4,3294.6,0.0283]
[1732287110154,3.03441,3295.6,3294.6,0.0283]
[1732287110363,0.303441,3295.5,3294.6,0.0283]
[1732287110588,3.03405,3296.0,3294.7,0.0283]
[1732287110803,0.303405,3295.9,3294.7,0.58034524]
[1732287110983,0.303405,3295.9,3294.8,0.0283]
[1732287111309,3.03417,3295.8,3294.9,0.0283]
[1732287111470,3.03403,3296.0,3294.9,0.0283]
[1732287111674,0.303403,3295.9,3294.9,0.0283]
[1732287112018,3.03422,3295.8,3294.9,0.0283]
[1732287112167,0.30337,3296.2,3294.9,0.0283]
[1732287112372,3.0349,3295.0,3294.9,0.0283]
[1732287112688,3.03496,3295.0,3293.7,0.0283]
[1732287113009,3.03517,3294.8,3293.7,0.0283]
[1732287113158,3.93180224,3295.4,3293.7,0.0283]
[1732287113361,3.03523,3294.7,3293.7,0.0283]
[1732287113560,0.607023,3294.7,3293.7,0.0283]
[1732287113759,3.0,3295.6,3293.7,0.0283]
[1732287113998,6.93180224,3295.4,3293.7,0.0283]
[1732287114203,3.03574,3294.1,3293.7,0.0283]
[1732287114911,3.03538,3294.5,3293.7,0.0283]
[1732287115274,3.03573,3294.1,3293.7,0.0283]
[1732287115524,3.03591,3293.9,3293.7,0.0283]
[1732287115729,0.303573,3294.0,3293.7,0.0283]
[1732287116016,3.0354,3294.5,3292.4,0.03036047]
[1732287116017,3.03634,3293.5,3292.5,0.0283]
[1732287116314,3.0362,3293.6,3292.5,0.0283]
[1732287116669,3.0361,3293.7,3292.5,0.0283]
[1732287116891,3.03594,3293.9,3292.5,0.0283]
[1732287117111,3.03601,3293.8,3292.5,0.0283]
[1732287117333,3.03573,3294.1,3292.5,0.0283]
[1732287117489,3.03638,3293.4,3292.5,0.0283]
[1732287117890,3.03702,3292.7,3292.5,0.0283]
[1732287118219,3.03699,3292.8,3292.5,0.0283]
[1732287118591,3.0365,3293.3,3292.5,0.0283]
[1732287118592,3.03708,3292.7,3292.5,0.0283]
[1732287118783,3.03708,3292.7,3290.8,0.03037157]
[1732287119004,3.93180224,3293.4,3290.8,0.03037157]
[1732287119005,3.0373,3292.4,3291.0,0.0283]
[1732287119172,3.03747,3292.3,3291.2,0.0283]
[1732287119501,3.93180224,3292.1,3291.2,0.0283]
[1732287119702,6.0744,3292.5,3291.2,0.0283]
[1732287120028,3.03729,3292.4,3291.2,0.0283]
[1732287120310,3.0,3293.0,3291.2,0.0283]
[1732287120514,3.03714,3292.6,3291.2,0.03037904]
[1732287120818,0.77922522,3293.0,3291.3,0.0283]
[1732287121020,3.03758,3292.1,3291.3,0.0283]
[1732287121224,6.93180224,3293.1,3291.3,0.0283]
[1732287121225,3.341448,3292.0,3291.3,0.0283]
[1732287121527,6.96897224,3292.6,3290.9,0.45384144]
[1732287121528,0.7608,3292.4,3290.9,0.45384144]
[1732287121703,3.03763,3292.1,3291.0,0.0283]
[1732287121867,3.0371,3292.7,3291.1,0.0586813]
[1732287122072,6.96805224,3293.6,3291.2,0.0283]
[1732287122284,3.03646,3293.3,3291.4,0.0283]
[1732287122496,3.03674,3293.0,3291.6,0.0283]
[1732287122697,3.03675,3293.0,3291.9,0.0283]
[1732287122914,3.03657,3293.2,3291.9,0.60867299]
[1732287123120,0.18644283,3293.3,3292.1,0.0283]
[1732287123302,3.03702,3292.7,3292.1,0.0283]
[1732287123619,3.03672,3293.1,3292.1,0.0283]
[1732287123776,3.03648,3293.3,3292.1,0.0283]
[1732287123982,3.03684,3292.9,3292.1,0.0283]
[1732287124198,3.03694,3292.8,3292.1,0.0283]
[1732287124407,3.03736,3292.4,3292.1,0.0283]
[1732287124612,3.03748,3292.2,3292.1,0.0283]
[1732287124819,3.03775,3292.0,3290.9,0.45384144]
[1732287124985,3.03776,3291.9,3291.0,0.0283]
[1732287125187,3.03796,3291.7,3291.0,0.0283]
[1732287125519,3.03729,3292.4,3291.0,0.0283]
[1732287125848,3.03712,3292.6,3291.0,0.0283]
[1732287126124,3.79653,3294.1,3291.3,0.0283]
[1732287126487,3.03599,3293.9,3291.8,3.0]
[1732287126642,0.303599,3293.8,3291.9,0.72354746]
[1732287126938,3.03577,3294.1,3292.1,0.0283]
[1732287127114,3.0362,3293.6,3292.2,0.55]
[1732287127448,3.42897022,3294.1,3292.3,0.0283]
[1732287127592,3.03656,3293.2,3292.3,0.0283]
[1732287127806,3.03606,3293.8,3292.3,0.0283]
[1732287128038,3.03636,3293.5,3292.3,0.0283]
[1732287128255,3.03678,3293.0,3292.3,0.0283]
[1732287128545,0.303678,3292.9,3292.3,0.0283]
[1732287128845,3.03713,3292.6,3292.3,0.0283]
[1732287129216,3.03729,3292.4,3292.3,0.0283]
[1732287129608,3.03739,3292.3,3291.0,0.0283]
[1732287129811,3.03702,3292.7,3291.0,0.0283]
[1732287130055,3.03767,3292.0,3291.0,0.0283]
[1732287130228,0.7589,3292.8,3291.0,0.0283]
[1732287130431,0.303652,3293.2,3291.0,0.0283]
[1732287130751,4.22784825,3294.0,3291.3,0.0283]
[1732287130958,3.03629,3293.5,3291.5,0.0283]
[1732287131112,3.93180224,3293.7,3291.5,0.0283]
[1732287131113,3.03684,3292.9,3291.8,0.0283]
[1732287131311,1.19199825,3294.0,3291.8,0.0283]
[1732287131312,3.03631,3293.5,3291.9,0.5783]
[1732287131518,3.0361,3293.7,3292.2,0.0283]
[1732287131761,3.03595,3293.9,3292.4,0.0283]
[1732287132055,3.03564,3294.2,3292.6,0.55]
[1732287132215,3.0357,3294.2,3292.7,0.0283]
[1732287132414,0.303564,3294.2,3292.7,0.0283]
[1732287132644,3.03592,3293.9,3292.7,0.0283]
[1732287132963,0.7595,3294.6,3292.7,0.0283]
[1732287132964,3.03584,3294.0,3292.7,0.0283]
[1732287133511,3.03569,3294.2,3292.7,0.0283]
[1732287133717,3.03614,3293.7,3292.7,0.0283]
[1732287134026,3.03592,3293.9,3292.7,0.0283]
[1732287134230,6.79481,3294.6,3292.7,0.0283]
[1732287134231,3.03587,3294.0,3292.7,0.0283]
[1732287134432,3.0356,3294.3,3292.7,0.0283]
[1732287135041,1.07266122,3294.5,3292.7,0.0283]
[1732287135247,3.03572,3294.2,3292.8,0.0283]
[1732287135685,3.03545,3294.4,3292.8,0.0283]
[1732287135824,3.03625,3293.6,3292.8,0.0283]
[1732287136029,3.036,3293.9,3292.8,0.0283]
[1732287136265,3.03648,3293.3,3292.8,0.0283]
[1732287136577,3.03648,3293.3,3290.9,0.0096]
[1732287136578,3.0,3293.4,3290.9,0.0283]
[1732287136879,3.0,3293.4,3290.8,3.93180224]
[1732287136880,3.03658,3293.2,3291.3,3.93180224]
[1732287137033,3.0357,3294.2,3291.9,0.0283]
[1732287137034,3.03619,3293.6,3291.9,0.0283]
[1732287137232,3.03619,3293.6,3291.8,3.93180224]
[1732287137233,3.03602,3293.8,3292.1,0.0283]
[1732287137430,3.03619,3293.6,3292.3,0.0283]
[1732287137635,0.51611134,3294.1,3292.3,0.0283]
[1732287137636,3.339909,3293.5,3292.3,0.0283]
[1732287137840,3.03582,3294.0,3292.3,0.0283]
[1732287138136,3.03629,3293.5,3292.3,0.0283]
[1732287138371,3.340089,3293.4,3292.3,0.0283]
[1732287138541,3.03646,3293.4,3292.3,0.0283]
[1732287138953,3.03616,3293.7,3292.3,0.0283]
[1732287139487,3.03593,3293.9,3292.5,0.0283]
[1732287139802,3.93180224,3295.2,3292.8,3.93180224]
[1732287139938,3.93180224,3295.2,3292.7,0.0283]
[1732287139939,0.7825,3295.6,3293.5,0.0283]
[1732287140249,3.03498,3295.0,3293.7,0.0283]
[1732287140657,3.8169,3295.6,3293.7,0.0283]
[1732287140658,3.03444,3295.5,3293.7,0.0283]
[1732287140840,3.03489,3295.1,3293.7,0.0283]
[1732287141036,3.44592528,3295.5,3293.9,0.55]
[1732287141240,3.0341,3295.9,3294.0,0.58035358]
[1732287141569,0.36366,3295.8,3294.4,0.55]
[1732287141737,3.03366,3296.4,3294.5,0.0283]
[1732287141942,0.303366,3296.3,3294.9,3.55]
[1732287142179,3.03315,3297.0,3295.1,0.55]
[1732287142339,3.03345,3296.6,3295.2,0.5783]
[1732287142783,0.15431435,3297.1,3295.2,0.0283]
[1732287142980,3.03398,3296.0,3295.2,0.0283]
[1732287143280,0.303398,3295.9,3295.2,0.0283]
[1732287143481,0.55,3297.0,3295.2,0.0283]
[1732287143689,3.0336,3296.5,3295.2,0.0283]
[1732287143849,0.30336,3296.4,3295.2,0.0283]
[1732287144050,3.03342,3296.6,3295.2,0.0283]
[1732287144363,3.03415,3295.9,3295.2,0.0283]
[1732287144689,3.03404,3296.0,3295.2,0.0283]
[1732287144980,0.303383,3296.1,3295.2,0.0283]
[1732287145295,3.03515,3294.8,3293.4,0.0283]
[1732287145461,0.303515,3294.7,3293.4,0.0283]
[1732287145656,3.338745,3294.7,3293.4,0.0283]
[1732287145864,0.303515,3294.7,3293.4,0.0283]
[1732287146159,3.03529,3294.6,3293.4,0.0283]
[1732287146390,3.0,3295.0,3293.4,0.0283]
[1732287146687,3.03536,3294.5,3293.4,0.0283]
[1732287146895,3.0351,3294.8,3293.4,0.0283]
[1732287147443,3.03491,3295.0,3293.4,0.0283]
[1732287147873,3.03527,3294.6,3293.4,0.0283]
[1732287148081,3.03471,3295.2,3293.4,0.0283]
[1732287148082,3.0348,3295.1,3293.4,0.0283]
[1732287148353,3.03626,3293.6,3293.4,0.0283]
[1732287148593,0.7764,3294.5,3293.4,0.0283]
[1732287148895,3.03556,3294.3,3293.4,0.0283]
[1732287149063,0.99666022,3295.0,3293.4,0.0283]
[1732287149262,3.7559,3295.5,3293.4,0.0283]
[1732287149461,3.03534,3294.6,3293.4,0.0283]
[1732287149770,3.0351,3294.8,3293.4,0.0283]
[1732287150398,3.03527,3294.6,3293.4,0.0283]
[1732287150561,3.03462,3295.3,3293.4,0.0283]
[1732287150761,3.0348,3295.1,3293.4,0.0283]
[1732287150952,3.03545,3294.5,3293.4,0.0283]
[1732287151150,3.03565,3294.2,3293.4,0.0283]
[1732287151499,3.03555,3294.3,3293.4,0.0283]
[1732287151678,0.303505,3294.8,3293.4,0.0283]
[1732287151877,3.03551,3294.4,3293.4,0.0283]
[1732287152215,3.03554,3294.3,3293.4,0.0283]
[1732287152355,3.339194,3294.2,3293.4,0.0283]
[1732287152556,3.03551,3294.4,3293.4,0.0283]
[1732287152774,3.0,3295.1,3293.4,0.0283]
[1732287152972,3.03525,3294.7,3293.4,0.0283]
[1732287153178,3.03502,3294.9,3293.4,0.0283]
[1732287153409,3.03484,3295.1,3293.4,0.0283]
[1732287153715,3.03465,3295.3,3293.4,0.0283]
[1732287153919,0.644469,3295.3,3293.7,0.0283]
[1732287154117,3.93180224,3295.2,3293.7,0.0283]
[1732287154619,3.0357,3294.2,3293.7,0.0283]
[1732287154800,3.03573,3294.1,3293.7,0.0283]
[1732287154970,0.828,3295.1,3293.7,0.0283]
[1732287155174,3.03551,3294.4,3293.7,0.0283]
[1732287155368,3.03528,3294.6,3293.7,0.0283]
[1732287155867,3.03511,3294.8,3293.7,0.0283]
[1732287156071,3.03493,3295.0,3293.7,0.0283]
[1732287156306,3.03472,3295.2,3293.7,0.0283]
[1732287156524,3.03492,3295.0,3293.7,0.0283]
[1732287157380,3.03473,3295.2,3293.7,0.0283]
[1732287157808,3.03455,3295.4,3293.7,0.0283]